bitfinex-derivatives/quotes_ETHF0:USTF0_20250102
["timestamp","ask_amount","ask_price","bid_price","bid_amount"]
[1735793260170,11.81957828,3427.7,3427.6,0.29228]
[1735793260363,10.49868828,3427.7,3427.6,1.66528]
[1735793260568,0.29212,3429.6,3427.6,7.27770144]
[1735793260765,3.2078,3429.8,3428.0,5.77775144]
[1735793260971,0.29214,3429.4,3428.0,5.77775144]
[1735793261167,11.84991279,3428.1,3428.0,10.77775144]
[1735793261369,8.93311279,3428.1,3428.0,12.15075144]
[1735793261766,3.2078,3429.8,3428.0,12.15075144]
[1735793261767,0.31905113,3428.3,3428.2,0.29223]
[1735793261963,3.2078,3429.8,3428.0,11.85850144]
[1735793262269,0.73001,3431.0,3429.6,3.2078]
[1735793262270,2.9168,3429.7,3429.6,3.2078]
[1735793262466,0.29211,3429.7,3429.6,3.2078]
[1735793262770,3.20891,3429.7,3429.6,3.2078]
[1735793264466,3.20891,3429.7,3429.6,1.86]
[1735793264670,3.20891,3429.7,3427.1,0.4324]
[1735793264671,0.29219,3428.7,3428.1,3.2078]
[1735793264864,0.29219,3428.7,3427.1,0.4324]
[1735793264865,3.2078,3428.3,3427.5,3.2078]
[1735793265066,3.50003,3428.3,3427.5,3.2078]
[1735793265262,3.2078,3428.3,3427.5,8.2078]
[1735793265465,3.2078,3428.3,3427.5,3.2078]
[1735793265663,3.2078,3428.3,3427.6,0.46]
[1735793265863,3.2078,3428.3,3427.7,1.373]
[1735793266075,2.82632029,3429.3,3427.9,3.2078]
[1735793266076,0.2922,3428.6,3427.9,3.2078]
[1735793266470,3.2078,3428.8,3427.9,3.2078]
[1735793266471,0.29221,3428.5,3427.9,3.2078]
[1735793266979,3.2078,3428.8,3427.9,3.2078]
[1735793267173,0.29225,3428.0,3427.9,3.2078]
[1735793268077,0.29225,3428.0,3427.9,2.86572122]
[1735793268269,0.29225,3428.0,3427.6,1.833]
[1735793268470,0.29226,3427.9,3427.6,1.833]
[1735793268685,0.29226,3427.9,3427.6,1.832]
[1735793268975,2.82632029,3429.3,3427.6,1.832]
[1735793268976,3.2078,3428.8,3427.7,0.29227]
[1735793269172,3.2078,3428.8,3428.0,3.2078]
[1735793269568,0.29223,3428.2,3428.0,3.2078]
[1735793269770,3.2078,3428.8,3428.0,3.2078]
[1735793269972,0.29223,3428.3,3428.0,3.2078]
[1735793270175,0.29224,3428.2,3428.0,3.2078]
[1735793270372,0.29225,3428.0,3427.9,0.0008]
[1735793270674,0.2922,3428.6,3427.9,0.0008]
[1735793270882,0.29225,3428.1,3427.9,0.0008]
[1735793271180,0.29224,3428.2,3427.9,0.0008]
[1735793271482,3.2078,3428.7,3427.9,0.0008]
[1735793271674,0.29225,3428.0,3427.9,0.0008]
[1735793271873,0.29224,3428.1,3427.9,0.0008]
[1735793272076,0.29225,3428.0,3427.9,0.0008]
[1735793272279,3.2078,3428.7,3427.9,0.0008]
[1735793272474,3.2078,3428.7,3428.0,3.2078]
[1735793272475,0.29222,3428.4,3428.0,3.2078]
[1735793272974,0.29221,3428.6,3428.0,3.2078]
[1735793273178,3.2078,3428.7,3428.0,3.2078]
[1735793273372,0.29216,3429.1,3428.0,3.2078]
[1735793273574,0.29222,3428.5,3428.0,3.2078]
[1735793274282,3.2078,3429.3,3428.4,3.2078]
[1735793274476,0.29219,3428.7,3428.4,3.2078]
[1735793274976,0.29218,3428.8,3428.4,3.2078]
[1735793275175,0.29218,3428.9,3428.4,8.2078]
[1735793275576,3.2078,3429.3,3428.5,1.372]
[1735793275878,0.2922,3428.6,3428.5,1.372]
[1735793276076,0.29219,3428.7,3428.5,1.372]
[1735793276482,3.2078,3429.3,3428.5,1.372]
[1735793276682,0.29219,3428.8,3428.5,1.372]
[1735793276884,0.29219,3428.7,3428.5,1.372]
[1735793277078,3.2078,3429.3,3428.4,3.2078]
[1735793277381,0.29221,3428.5,3428.4,3.2078]
[1735793277577,0.29223,3428.3,3428.1,1.372]
[1735793277772,0.29221,3428.5,3428.1,1.372]
[1735793277979,0.2922,3428.6,3428.1,1.66423]
[1735793278382,0.2922,3428.6,3428.1,6.66423]
[1735793278674,0.29219,3428.7,3428.1,6.372]
[1735793278878,0.29219,3428.7,3428.2,0.29223]
[1735793279086,0.29219,3428.7,3428.4,3.2078]
[1735793279278,3.2078,3428.9,3428.4,3.2078]
[1735793279477,0.29221,3428.5,3428.4,3.2078]
[1735793279977,0.29224,3428.1,3428.0,3.2078]
[1735793282283,0.29223,3428.2,3428.0,3.2078]
[1735793282483,0.29223,3428.3,3428.0,3.2078]
[1735793282690,0.29224,3428.2,3428.0,3.2078]
[1735793283285,0.29224,3428.1,3428.0,3.2078]
[1735793283488,0.29225,3428.0,3427.9,0.0008]
[1735793289888,0.29225,3428.0,3426.8,0.29235]
[1735793290083,0.2923,3427.5,3426.6,4.5848]
[1735793290282,0.2923,3427.5,3426.9,0.29234]
[1735793290481,0.29229,3427.5,3427.0,3.50013]
[1735793290674,3.2078,3428.1,3427.0,3.50013]
[1735793290675,3.2078,3428.1,3427.0,3.2078]
[1735793291083,0.2923,3427.4,3427.0,3.2078]
[1735793291682,3.2078,3428.1,3427.0,3.2078]
[1735793291987,0.29222,3428.4,3427.6,0.29228]
[1735793292184,0.4634,3428.5,3427.7,0.29227]
[1735793292385,0.29224,3428.2,3427.7,0.29227]
[1735793292684,0.29224,3428.2,3427.7,0.29228]
[1735793293082,0.29224,3428.2,3427.5,0.8736]
[1735793293083,0.4634,3428.5,3427.8,3.2078]
[1735793293683,3.5,3428.6,3428.1,0.29224]
[1735793293880,0.29222,3428.4,3427.9,0.29226]
[1735793294287,3.2078,3428.6,3427.8,3.2078]
[1735793294892,0.29225,3428.0,3427.6,0.29228]
[1735793295186,3.2078,3428.6,3427.5,2.2506]
[1735793295381,3.2078,3428.6,3427.8,3.2078]
[1735793295581,0.29221,3428.5,3428.2,0.29223]
[1735793295992,3.2078,3428.6,3427.8,3.2078]
[1735793296189,0.29222,3428.4,3428.0,0.29225]
[1735793296483,0.2922,3428.6,3428.2,0.29223]
[1735793296693,0.2922,3428.6,3428.2,3.2078]
[1735793296879,0.29221,3428.5,3428.2,3.50003]
[1735793297080,3.6342,3429.1,3428.2,3.2078]
[1735793297386,0.29223,3428.3,3428.0,0.29225]
[1735793297782,0.29222,3428.5,3428.1,0.29224]
[1735793297989,0.29222,3428.5,3427.8,8.2078]
[1735793298188,0.29221,3428.5,3428.1,0.29223]
[1735793298390,3.6342,3429.1,3427.9,0.45687974]
[1735793298593,3.6342,3429.1,3428.1,0.29224]
[1735793298890,0.29222,3428.4,3428.1,0.29224]
[1735793299085,0.29223,3428.3,3428.0,0.29225]
[1735793299283,3.6342,3429.1,3427.8,3.2078]
[1735793299695,0.29221,3428.5,3428.2,3.50003]
[1735793299987,3.6342,3429.1,3428.2,3.2078]
[1735793300189,0.29222,3428.3,3428.2,3.2078]
[1735793300594,3.2078,3428.7,3427.7,4.53011889]
[1735793300895,0.29227,3427.8,3427.7,4.53011889]
[1735793301081,0.4494,3428.6,3427.7,4.53011889]
[1735793301384,0.29226,3427.9,3427.6,7.73791889]
[1735793301590,0.29227,3427.8,3427.6,7.73791889]
[1735793302491,1.17992,3428.6,3427.6,3.2078]
[1735793302886,0.29226,3427.9,3427.6,3.50008]
[1735793303387,1.17992,3428.6,3427.5,5.40371889]
[1735793303388,3.2078,3428.2,3427.5,4.53011889]
[1735793303592,0.29228,3427.6,3427.5,4.53011889]
[1735793303987,3.50008,3427.6,3427.5,4.53011889]
[1735793304491,0.29231,3427.3,3427.2,4.53011889]
[1735793304692,3.2078,3427.6,3427.2,4.53011889]
[1735793304693,0.2923,3427.5,3427.2,4.53011889]
[1735793304893,3.44272507,3428.1,3427.2,4.53011889]
[1735793305093,0.29229,3427.5,3427.2,4.82243889]
[1735793305391,0.29229,3427.5,3427.4,4.53011889]
[1735793305989,0.29229,3427.6,3427.4,4.53011889]
[1735793306185,2.71211507,3428.1,3427.4,4.53011889]
[1735793306392,0.29229,3427.6,3427.4,7.93363364]
[1735793307193,0.29229,3427.6,3427.5,14.66472235]
[1735793309096,0.29228,3427.7,3427.5,14.66472235]
[1735793309395,0.29228,3427.7,3427.5,7.93363364]
[1735793309596,0.29225,3428.0,3427.5,7.93363364]
[1735793309895,0.29228,3427.6,3427.5,7.93363364]
[1735793310292,0.29228,3427.6,3427.1,3.50012]
[1735793310293,3.2078,3427.8,3427.6,4.49005474]
[1735793310493,0.29228,3427.7,3427.6,4.49005474]
[1735793311594,2.71211507,3428.1,3427.6,4.49005474]
[1735793311793,0.29228,3427.7,3427.6,4.49005474]
[1735793311989,2.71211507,3428.1,3427.5,4.49005474]
[1735793312194,0.29227,3427.8,3427.5,4.49005474]
[1735793312896,0.29226,3427.9,3427.4,4.78235474]
[1735793313092,0.29227,3427.9,3427.4,4.78235474]
[1735793313294,0.4428,3428.1,3427.5,3.2078]
[1735793313495,0.73505,3428.1,3427.6,0.29228]
[1735793313798,0.4428,3428.1,3427.5,3.2078]
[1735793314097,0.29225,3428.0,3427.5,3.50009]
[1735793314296,0.4428,3428.1,3427.6,0.0008]
[1735793314500,3.2078,3428.3,3427.9,0.29225]
[1735793315095,0.29224,3428.2,3427.7,0.72307]
[1735793315290,0.29224,3428.2,3427.7,0.4308]
[1735793315492,0.29223,3428.2,3427.8,0.29226]
[1735793315699,0.29223,3428.2,3427.7,0.4308]
[1735793315901,0.29223,3428.2,3427.7,0.72307]
[1735793316303,0.29223,3428.2,3427.7,0.4308]
[1735793316599,0.29223,3428.2,3427.8,0.29227]
[1735793317199,0.86408076,3428.6,3427.6,0.0008]
[1735793317400,0.29228,3427.7,3427.6,0.0008]
[1735793317601,0.29228,3427.7,3426.8,4.49005474]
[1735793317602,0.29234,3426.9,3426.8,4.49005474]
[1735793317897,0.29233,3427.1,3426.8,4.49005474]
[1735793318093,0.29232,3427.2,3426.9,3.2078]
[1735793319091,0.29233,3427.1,3426.9,3.2078]
[1735793319293,0.29232,3427.2,3426.9,3.2078]
[1735793319597,0.29233,3427.1,3426.9,3.2078]
[1735793320108,0.29234,3427.0,3426.9,3.2078]
[1735793320702,0.29234,3427.0,3426.7,0.29235]
[1735793321101,0.29237,3426.6,3426.5,3.2078]
[1735793321701,0.29236,3426.7,3426.5,3.2078]
[1735793322106,0.4513,3427.0,3426.5,3.2078]
[1735793322312,0.29235,3426.9,3426.6,0.29236]
[1735793322498,0.29235,3426.9,3426.6,0.29237]
[1735793322901,0.29236,3426.8,3426.5,3.50017]
[1735793323199,0.4513,3427.0,3426.5,3.2078]
[1735793323403,0.29234,3426.9,3426.6,0.29236]
[1735793323605,0.4513,3427.0,3426.7,0.29236]
[1735793323809,0.29234,3427.0,3426.9,3.2078]
[1735793324703,3.6398,3427.5,3426.6,0.29237]
[1735793324902,0.29235,3426.9,3426.6,0.29237]
[1735793325206,3.6398,3427.5,3426.8,3.50015]
[1735793325207,0.29233,3427.1,3426.8,3.50015]
[1735793325402,0.4207,3427.7,3427.3,0.29231]
[1735793325403,0.29228,3427.7,3427.3,0.29231]
[1735793325599,3.2078,3427.9,3427.2,3.2078]
[1735793325907,0.29231,3427.3,3427.2,3.2078]
[1735793326504,3.2078,3427.9,3427.0,1.346]
[1735793326505,0.29233,3427.1,3427.0,1.346]
[1735793328410,3.2078,3427.5,3426.7,3.2078]
[1735793328601,0.29235,3426.9,3426.7,3.2078]
[1735793328999,0.29235,3426.8,3426.7,3.2078]
[1735793329209,3.1125909,3427.4,3426.7,3.2078]
[1735793329210,0.29235,3426.9,3426.7,3.2078]
[1735793329605,5.90561507,3427.4,3426.7,3.2078]
[1735793329908,0.29235,3426.8,3426.7,3.2078]
[1735793330308,2.69781507,3427.4,3426.7,3.2078]
[1735793330513,0.29235,3426.8,3426.7,3.2078]
[1735793330708,0.29235,3426.9,3426.7,3.2078]
[1735793330904,0.29235,3426.8,3426.7,3.2078]
[1735793331803,0.29235,3426.9,3426.7,3.2078]
[1735793332002,0.29235,3426.8,3426.7,3.2078]
[1735793332315,0.29238,3426.5,3426.4,0.4246]
[1735793332614,0.29234,3427.0,3426.7,0.29236]
[1735793333014,0.29232,3427.2,3426.9,0.29234]
[1735793333208,0.29233,3427.1,3426.8,0.29235]
[1735793333408,0.29234,3427.0,3426.7,0.29236]
[1735793333905,1.27107575,3427.4,3426.8,0.29235]
[1735793334109,0.29236,3426.7,3426.6,3.2078]
[1735793334414,2.26931507,3426.9,3426.2,3.2078]
[1735793334615,2.68429082,3426.9,3426.2,3.2078]
[1735793334815,0.29237,3426.6,3426.3,0.29239]
[1735793335011,0.29236,3426.8,3426.5,0.29237]
[1735793335210,0.29239,3426.3,3426.2,3.2078]
[1735793335414,2.26931507,3426.3,3426.0,4.49005474]
[1735793335713,3.2078,3426.1,3425.5,4.49005474]
[1735793335913,2.6842694,3426.0,3425.5,4.49005474]
[1735793336119,0.29243,3425.9,3425.5,4.78251474]
[1735793336409,0.29245,3425.7,3425.5,4.49005474]
[1735793336610,3.1204694,3426.0,3425.5,4.49005474]
[1735793336809,0.29245,3425.7,3425.3,0.72748]
[1735793337010,0.29246,3425.6,3425.3,0.435]
[1735793337612,0.29245,3425.7,3425.3,0.72748]
[1735793338009,0.85115433,3426.0,3425.3,0.435]
[1735793338212,0.2924,3426.3,3425.6,3.2078]
[1735793338418,0.84658334,3426.5,3425.8,0.29243]
[1735793338610,0.29241,3426.2,3425.7,0.29244]
[1735793338805,0.4323,3426.5,3425.7,0.29244]
[1735793339017,0.29241,3426.1,3425.6,3.50025]
[1735793339310,2.26931507,3426.3,3426.0,3.2078]
[1735793339507,0.4253,3427.2,3426.0,3.2078]
[1735793339710,0.4612,3427.3,3427.1,0.29233]
[1735793340019,3.2078,3427.4,3426.7,3.2078]
[1735793340319,3.2078,3427.4,3427.3,0.29231]
[1735793340818,0.29228,3427.7,3427.2,0.29231]
[1735793341016,0.29228,3427.7,3427.1,3.2078]
[1735793341319,0.41383458,3427.9,3427.6,0.29228]
[1735793341507,0.41383458,3427.9,3427.5,3.2078]
[1735793341508,0.4253,3428.1,3427.8,0.29227]
[1735793341713,0.4253,3428.1,3427.9,3.2078]
[1735793342429,2.26931507,3428.2,3427.9,3.2078]
[1735793342612,2.26931507,3428.6,3428.0,0.29224]
[1735793342918,2.26931507,3428.6,3428.0,3.50005]
[1735793343115,0.83983458,3428.9,3428.0,3.50005]
[1735793343815,0.29218,3428.8,3428.1,0.29224]
[1735793344219,0.83983458,3428.9,3428.1,0.29224]
[1735793344419,0.29219,3428.7,3428.1,0.29224]
[1735793344617,0.29219,3428.7,3428.0,3.50005]
[1735793344818,0.2922,3428.6,3428.0,3.50005]
[1735793345117,0.83983458,3428.9,3428.0,3.2078]
[1735793345118,0.74801,3428.5,3428.0,3.2078]
[1735793345311,0.74801,3428.5,3427.8,1.346]
[1735793345312,0.29222,3428.4,3427.8,1.346]
[1735793345720,0.29222,3428.4,3427.8,1.63827]
[1735793346023,0.4558,3428.5,3427.6,4.84688]
[1735793346319,2.26931507,3428.3,3427.6,3.2086]
[1735793346622,0.29225,3428.0,3427.6,3.2086]
[1735793346920,3.2078,3427.9,3427.6,0.0008]
[1735793347219,0.87163458,3427.8,3427.6,0.0008]
[1735793347419,1.16390458,3427.8,3427.6,0.0008]
[1735793347619,0.29228,3427.7,3427.6,0.0008]
[1735793348318,0.87163458,3427.8,3426.7,3.2078]
[1735793348613,3.2078,3427.2,3426.7,3.2078]
[1735793348812,1.16396458,3427.1,3426.7,3.2078]
[1735793349018,0.29235,3426.9,3426.2,0.4205]
[1735793349220,0.29235,3426.9,3426.2,0.7129]
[1735793349413,0.29236,3426.8,3426.1,3.50021]
[1735793349614,0.4323,3427.0,3426.1,3.2078]
[1735793349813,0.4323,3427.0,3426.2,0.2924]
[1735793349814,0.29234,3426.9,3426.2,0.2924]
[1735793350022,3.50015,3426.8,3426.1,3.50021]
[1735793350319,3.24473019,3426.7,3426.1,3.2078]
[1735793350519,0.29242,3426.0,3425.3,0.4246]
[1735793350716,3.2078,3426.4,3425.3,0.4246]
[1735793350717,3.2078,3426.1,3425.4,0.29247]
[1735793350917,0.70626458,3426.0,3425.4,0.29247]
[1735793351123,0.41383458,3426.0,3425.3,0.4246]
[1735793351311,0.29244,3425.8,3425.3,0.4246]
[1735793351516,0.70625458,3426.0,3425.2,3.2078]
[1735793351816,0.29244,3425.8,3425.2,3.2078]
[1735793352018,0.41383458,3426.0,3425.2,3.2078]
[1735793352521,0.29241,3426.2,3425.5,0.29246]
[1735793352822,0.41383458,3426.5,3426.0,0.29242]
[1735793353020,0.70621458,3426.5,3425.6,3.2078]
[1735793353320,5.41383458,3426.5,3425.6,3.2078]
[1735793353516,0.29239,3426.3,3425.6,3.50025]
[1735793353718,0.41383458,3426.5,3425.6,3.2078]
[1735793354019,0.2924,3426.3,3425.7,0.29244]
[1735793354523,0.41383458,3426.5,3425.7,0.29244]
[1735793354816,3.2078,3426.2,3425.2,3.6535]
[1735793355020,0.41339991,3426.1,3425.2,3.2078]
[1735793355220,0.29242,3426.0,3425.2,3.2078]
[1735793355415,0.29245,3425.7,3425.2,3.2078]
[1735793355617,0.4293,3426.0,3425.2,3.2078]
[1735793355818,0.4289,3425.9,3425.2,3.2078]
[1735793356525,0.4289,3425.9,3425.6,3.2078]
[1735793356918,0.4289,3425.9,3425.2,3.2078]
[1735793357219,0.72134,3425.9,3425.2,3.50029]
[1735793357425,0.72134,3425.9,3425.2,3.2078]
[1735793357724,0.4289,3425.9,3425.2,3.2078]
[1735793358224,0.29244,3425.8,3425.2,3.2078]
[1735793359019,0.4289,3425.9,3425.2,3.2078]
[1735793359222,0.29248,3425.3,3425.2,3.2078]
[1735793359718,3.2078,3425.7,3425.2,3.2078]
[1735793359917,0.29248,3425.3,3425.2,3.2078]
[1735793360113,0.29252,3424.8,3424.7,3.2078]
[1735793360319,0.29253,3424.8,3424.3,4.5368]
[1735793360520,2.83089561,3425.2,3424.3,3.2078]
[1735793360719,0.29253,3424.8,3424.3,3.2078]
[1735793360927,2.83089561,3425.2,3424.3,3.2078]
[1735793361112,0.29253,3424.7,3424.3,3.2078]
[1735793361316,0.29255,3424.6,3424.3,3.2078]
[1735793361515,0.4339,3425.3,3424.3,3.2078]
[1735793361718,0.29253,3424.8,3424.3,3.2078]
[1735793361921,0.29253,3424.8,3424.2,0.8638]
[1735793361922,0.4339,3425.3,3424.7,3.2078]
[1735793362125,0.29252,3424.8,3424.7,3.2078]
[1735793362320,0.4339,3425.3,3424.3,3.2078]
[1735793362527,0.4339,3425.3,3424.7,3.2078]
[1735793362826,0.29251,3425.0,3424.7,3.2078]
[1735793363219,0.2925,3425.1,3424.7,3.2078]
[1735793363419,0.4339,3425.3,3424.7,3.2078]
[1735793363420,3.6417,3425.3,3424.7,3.2078]
[1735793363815,0.29249,3425.2,3424.7,3.2078]
[1735793364027,0.4339,3425.3,3424.7,3.2078]
[1735793364230,0.2925,3425.1,3424.7,3.2078]
[1735793364422,0.29251,3425.0,3424.7,3.2078]
[1735793365320,0.29252,3424.8,3424.7,3.2078]
[1735793365526,6.03869561,3425.2,3424.2,0.8638]
[1735793365828,0.29255,3424.5,3424.2,0.8638]
[1735793366532,0.29256,3424.4,3424.2,0.8638]
[1735793366829,0.4561,3425.0,3424.2,0.8638]
[1735793367023,0.29257,3424.3,3424.2,0.4346]
[1735793367424,0.29257,3424.3,3424.1,3.2078]
[1735793367425,0.29257,3424.2,3424.1,3.2078]
[1735793368527,0.4443,3424.6,3423.6,3.2078]
[1735793369033,5.4443,3424.6,3423.6,3.2078]
[1735793369231,0.29262,3423.7,3423.6,3.2078]
[1735793369527,0.29261,3423.8,3423.6,3.2078]
[1735793369727,0.2926,3423.9,3423.6,3.2078]
[1735793369927,0.29262,3423.7,3423.6,3.2078]
[1735793370132,0.2926,3424.0,3423.6,3.2078]
[1735793370333,0.2926,3424.0,3423.6,3.50043]
[1735793370534,0.2926,3424.0,3423.6,3.2078]
[1735793371134,0.2926,3423.9,3423.6,3.2078]
[1735793371530,3.6521,3424.6,3423.6,3.2078]
[1735793371730,0.2926,3423.9,3423.6,3.2078]
[1735793372828,0.29261,3423.8,3423.6,3.2078]
[1735793373132,3.2078,3424.2,3423.6,3.2078]
[1735793373333,0.29261,3423.9,3423.6,3.2078]
[1735793373734,3.6521,3424.6,3423.6,3.2078]
[1735793373930,3.94464,3424.6,3424.1,0.29258]
[1735793374234,0.4443,3424.6,3424.0,3.2078]
[1735793374730,0.29256,3424.4,3424.0,3.2078]
[1735793374935,0.29255,3424.5,3424.0,3.2078]
[1735793375135,0.29257,3424.3,3424.0,3.2078]
[1735793375328,3.6521,3424.6,3424.0,3.2078]
[1735793375634,0.29256,3424.4,3424.0,3.2078]
[1735793375837,0.4443,3424.6,3424.0,3.2078]
[1735793376132,0.29256,3424.4,3424.0,3.2078]
[1735793376332,0.4443,3424.6,3424.0,3.2078]
[1735793376527,0.29256,3424.4,3424.0,3.2078]
[1735793376729,0.29255,3424.5,3424.0,3.50038]
[1735793376929,3.6639,3425.0,3424.1,0.4381]
[1735793377130,0.29252,3424.9,3424.1,0.4381]
[1735793377327,0.4534,3425.2,3424.9,0.29251]
[1735793377533,3.2078,3426.1,3424.8,3.2078]
[1735793377728,0.86698721,3426.0,3425.3,3.2078]
[1735793378135,0.29243,3425.9,3425.3,3.2078]
[1735793378332,0.29246,3425.6,3425.3,3.2078]
[1735793379338,0.29248,3425.4,3424.9,4.1042]
[1735793379637,0.29249,3425.3,3424.9,4.1042]
[1735793380030,3.24914066,3425.9,3424.9,4.1042]
[1735793380232,0.29246,3425.6,3425.1,0.29249]
[1735793380527,0.29245,3425.7,3425.3,3.2078]
[1735793380731,3.24914066,3425.9,3425.3,3.2078]
[1735793381134,0.29245,3425.7,3425.3,3.2078]
[1735793381837,0.29244,3425.8,3425.3,3.2078]
[1735793382040,0.29245,3425.7,3425.3,3.2078]
[1735793382440,0.41358721,3425.9,3425.3,3.2078]
[1735793382635,0.86698721,3426.0,3425.3,3.2078]
[1735793382834,0.4534,3426.0,3425.3,3.50028]
[1735793383036,0.29244,3425.9,3425.3,3.50028]
[1735793383236,0.86698721,3426.0,3425.3,3.2078]
[1735793383538,0.29244,3425.8,3425.3,3.2078]
[1735793383739,0.29245,3425.7,3425.3,3.2078]
[1735793384142,0.86698721,3426.0,3425.3,3.2078]
[1735793384342,0.29246,3425.6,3425.3,3.2078]
[1735793384543,0.29246,3425.6,3425.0,0.2925]
[1735793384738,0.29247,3425.5,3424.9,1.18891]
[1735793384945,0.2925,3425.1,3424.9,0.4583]
[1735793386036,0.70605721,3425.5,3424.9,0.75081]
[1735793386237,0.41358721,3425.5,3424.9,0.4583]
[1735793386542,0.29246,3425.6,3425.0,0.2925]
[1735793386845,3.24914066,3425.9,3425.0,0.2925]
[1735793387141,0.29248,3425.4,3424.9,0.4583]
[1735793387340,0.29248,3425.4,3424.9,0.75081]
[1735793387544,0.29248,3425.4,3424.9,0.4583]
[1735793387736,3.98022066,3425.9,3424.9,0.4583]
[1735793387939,3.2078,3425.5,3424.9,0.4583]
[1735793388145,0.29248,3425.3,3424.9,0.4583]
[1735793388338,0.41358721,3425.4,3424.9,0.4583]
[1735793388641,0.41358721,3425.4,3425.0,0.2925]
[1735793388942,0.41358721,3425.7,3425.2,3.2078]
[1735793389244,0.29246,3425.6,3425.2,3.2078]
[1735793389446,0.41358721,3425.7,3425.2,3.2078]
[1735793389744,0.29247,3425.5,3425.2,3.2078]
[1735793392040,0.41358721,3425.7,3424.9,0.4583]
[1735793392241,0.29248,3425.3,3424.9,0.4583]
[1735793392440,0.41358721,3425.4,3424.9,0.4583]
[1735793392735,0.29246,3425.6,3425.0,0.29251]
[1735793393244,0.29246,3425.6,3424.9,0.4583]
[1735793393545,0.29246,3425.6,3425.1,0.2925]
[1735793395049,0.29245,3425.7,3425.2,0.29249]
[1735793395349,0.29245,3425.7,3425.3,0.4529]
[1735793395848,0.29246,3425.6,3425.3,0.4529]
[1735793396545,0.41358721,3425.9,3425.3,0.4529]
[1735793396741,0.29245,3425.7,3425.3,0.4529]
[1735793399247,0.29246,3425.6,3425.3,0.4529]
[1735793400346,0.29246,3425.5,3425.3,0.4529]
[1735793401147,0.29247,3425.5,3425.3,0.4529]
[1735793401355,0.29247,3425.4,3425.3,0.4529]
[1735793401650,0.29247,3425.5,3425.1,0.29249]
[1735793402254,0.29247,3425.4,3425.1,0.29249]
[1735793402747,0.29248,3425.4,3425.1,0.29249]
[1735793403253,2.27194632,3425.7,3425.0,0.8885]
[1735793403551,0.29249,3425.3,3425.0,1.181]
[1735793404044,2.27194632,3425.4,3424.9,0.4583]
[1735793404247,2.68553353,3425.4,3424.7,3.2078]
[1735793404447,0.29252,3424.8,3424.7,3.2078]
[1735793404947,0.9015,3425.3,3424.7,3.2078]
[1735793405140,0.29251,3425.0,3424.7,3.2078]
[1735793405340,0.29251,3425.0,3424.7,3.50033]
[1735793405848,0.73718,3425.3,3425.0,0.29251]
[1735793406047,0.41358721,3425.4,3425.3,0.29248]
[1735793406254,0.29248,3425.4,3425.1,3.50029]
[1735793406449,0.41358721,3425.8,3425.1,3.2078]
[1735793406654,0.41358721,3425.8,3425.7,0.29245]
[1735793406947,0.29241,3426.1,3425.7,0.29244]
[1735793407151,0.29242,3426.0,3425.6,0.29245]
[1735793407345,0.29242,3426.0,3425.5,3.2078]
[1735793407346,1.15068721,3426.2,3425.7,0.29244]
[1735793407551,0.41358721,3426.2,3425.9,0.29242]
[1735793407848,0.41358721,3426.2,3426.0,0.448]
[1735793408049,3.50016,3426.7,3426.1,0.29241]
[1735793408348,3.2078,3426.7,3426.1,0.4665]
[1735793408754,3.2078,3426.7,3426.5,0.29237]
[1735793408956,3.2078,3426.7,3426.1,0.4665]
[1735793409347,0.4448,3427.1,3426.3,3.2078]
[1735793409548,2.27194632,3427.2,3426.8,0.29235]
[1735793409852,2.27194632,3427.2,3426.8,0.4302]
[1735793410355,0.29233,3427.1,3426.8,0.4302]
[1735793410855,2.56426632,3427.2,3426.8,0.4302]
[1735793411050,2.27194632,3427.2,3426.8,0.4302]
[1735793411251,0.29233,3427.1,3426.8,0.4302]
[1735793411451,2.56427632,3427.1,3426.8,0.4302]
[1735793412254,2.27194632,3427.1,3426.8,0.72255]
[1735793412650,2.27194632,3427.1,3426.8,0.4302]
[1735793412857,2.77194632,3427.4,3426.9,0.29234]
[1735793413051,2.77194632,3427.4,3426.8,0.4302]
[1735793413657,2.77194632,3427.4,3426.9,0.29234]
[1735793413857,2.77194632,3427.4,3426.8,0.72255]
[1735793413858,3.06425632,3427.4,3426.8,0.72255]
[1735793414761,3.06425632,3427.4,3426.8,0.4302]
[1735793415065,0.29231,3427.3,3426.8,0.4302]
[1735793415363,3.06424632,3427.4,3426.8,0.4302]
[1735793415558,2.77194632,3427.4,3426.8,0.72255]
[1735793415759,3.06424632,3427.4,3426.8,0.72255]
[1735793415963,2.77194632,3427.4,3426.8,0.72255]
[1735793416265,3.06425632,3427.4,3426.8,0.72255]
[1735793416465,2.77194632,3427.4,3426.8,0.72255]
[1735793417059,3.06424632,3427.4,3426.8,0.72255]
[1735793417265,0.29231,3427.3,3426.8,0.4302]
[1735793417463,3.06424632,3427.4,3426.8,0.4302]
[1735793417767,2.56424632,3427.4,3426.8,0.4302]
[1735793418666,2.27194632,3427.4,3426.8,0.4302]
[1735793418869,2.27194632,3427.4,3426.8,0.72255]
[1735793419070,2.56424632,3427.4,3426.8,0.72255]
[1735793419261,2.56424632,3427.4,3426.8,0.72335]
[1735793420073,0.29231,3427.3,3426.8,0.431]
[1735793420279,3.17064632,3427.7,3427.1,3.2078]
[1735793420472,3.17064632,3427.7,3427.2,0.29231]
[1735793421068,3.46292632,3427.7,3427.2,0.29231]
[1735793421268,3.17064632,3427.7,3427.2,0.29232]
[1735793421477,3.46292632,3427.7,3427.1,3.50012]
[1735793421676,3.46292632,3427.7,3427.2,0.29232]
[1735793422076,3.17064632,3427.7,3427.1,3.2078]
[1735793422773,0.29232,3427.2,3427.1,3.2078]
[1735793423074,0.29231,3427.3,3426.8,0.72335]